[Event "Romanian Superleague 2022"]
[Site "Oradea"]
[Date "2022.09.27"]
[Round "7.8"]
[White "Baklan, Vladimir"]
[Black "Petkov, Momchil"]
[Result "1/2-1/2"]
[ECO "B90"]
[WhiteElo "2578"]
[BlackElo "2511"]
[Annotator "TA"]
[PlyCount "75"]
[EventDate "2022.09.21"]
[EventType "team-tourn"]
[EventCountry "ROU"]
[SourceTitle "playchess.com"]
[Source "ChessBase"]
[SourceQuality "1"]
[TimeControl "40/5400+30:1800+30"]

{[%evp 15,75,14,29,4,26,17,26,20,20,20,22,23,32,32,45,39,41,42,36,18,60,61,62,63,63,62,64,62,56,59,63,56,56,55,58,52,58,55,56,49,57,50,43,35,37,30,25,14,17,17,18,14,14,14,14,16,16,16,26,19,25,3]} 1. e4 {[%emt 0:00:03]} c5 {[%emt 0:00:13]} 2. Nf3 {[%emt 0:00:04]} d6 {[%emt 0:00:15]} 3. d4 {[%emt 0:00:05]} cxd4 {[%emt 0:00:06]} 4. Nxd4 {[%emt 0:00:03]} Nf6 {[%emt 0:00:13]} 5. Nc3 {[%emt 0:00:04]} a6 {[%emt 0:00:10]} 6. Be3 {[%emt 0:00:05]} e5 {[%emt 0:00:20]} 7. Nf3 {[%emt 0:00:04]} Be7 {[%emt 0:00:15]} 8. Bc4 {[%emt 0:00:08]} Be6 {[%emt 0:00:18]} 9. Bb3 {[%emt 0:00:07] B90: Sicilian Najdorf: Unusual White 6th moves, 6 Be3 Ng4 and 6 Be3 e5.} Nbd7 {[%emt 0:01:09] [#]} 10. Nh4 $146 {[%emt 0:00:31]} ({Predecessor:} 10. O-O Rc8 11. Nh4 Nc5 12. Bxc5 Rxc5 13. Re1 Qd7 14. g3 O-O 15. Ng2 Bd8 16. Qd3 Ba5 {0-1 (38) Karjakin,S (2754)-Giri,A (2776) Bucharest 2019}) 10... Rc8 {[%emt 0:12:38]} 11. Nf5 {[%emt 0:01:26]} Bxf5 {[%emt 0:02:48]} 12. exf5 {[%emt 0:01:10]} Nc5 {[%emt 0:01:13]} 13. Bxc5 {[%emt 0:02:17]} Rxc5 {[%emt 0:01:41]} 14. Qd3 {[%emt 0:00:05][%cal Og2g4]} e4 {[%emt 0:19:38]} 15. Qd4 {[%emt 0:00:38]} ({Don't blunder} 15. Nxe4 $2 Nxe4 16. f3 Nf6 $19) 15... Rxf5 {[%emt 0:05:25]} 16. O-O-O {[%emt 0:00:48]} O-O {[%emt 0:09:55]} 17. Nxe4 {[%emt 0:11:13]} Rf4 {[%emt 0:00:05]} 18. Rhe1 {[%emt 0:05:03]} Nxe4 {[%emt 0:03:20]} 19. Rxe4 {[%emt 0:00:19]} Bf6 {[%emt 0:00:43]} 20. Qe3 {[%emt 0:01:43] White is much more active.} Rxe4 {[%emt 0:00:39]} 21. Qxe4 {[%emt 0:00:05]} Qe7 {[%emt 0:03:36]} 22. Qxe7 {[%emt 0:04:15]} (22. Bd5 {keeps more tension.} Qd7 23. g3 b5 24. Qd3) 22... Bxe7 $14 {[%emt 0:00:06][%mdl 4096] Endgame KRB-KRB} 23. g3 {[%emt 0:00:05]} Rc8 {[%emt 0:05:24]} 24. Bd5 {[%emt 0:01:57]} Rc7 {[%emt 0:00:16]} 25. Rd3 {[%emt 0:00:06]} b6 {[%emt 0:06:35]} 26. Rb3 {[%emt 0:07:44]} Bd8 {[%emt 0:01:49]} 27. Kd2 {[%emt 0:03:34]} g6 {[%emt 0:04:39]} 28. Re3 {[%emt 0:14:12] [#] And now Re8+ would win.} Kf8 {[%emt 0:00:48] Against Re8+} 29. b4 {[%emt 0:00:23]} a5 {[%emt 0:05:38]} 30. a3 {[%emt 0:01:10]} Bf6 {[%emt 0:01:53]} 31. c3 {[%emt 0:02:09]} g5 {[%emt 0:04:48]} 32. Rd3 {[%emt 0:03:21]} Be5 {[%emt 0:00:58]} 33. Kc2 {[%emt 0:01:41]} axb4 {[%emt 0:00:07]} 34. axb4 {[%emt 0:00:04]} h6 {[%emt 0:02:23]} 35. Rf3 {[%emt 0:06:25]} Kg7 {[%emt 0:01:34]} 36. Kb3 {[%emt 0:01:37]} Bf6 {[%emt 0:00:47]} 37. Rd3 {[%emt 0:05:44]} Be5 {[%emt 0:00:23]} 38. Bc4 {[%emt 0:00:44] Weighted Error Value: White=0.03 (flawless) /Black=0.04 (flawless)} 1/2-1/2

[Event "Romanian Superleague 2022"]
[Site "Oradea"]
[Date "2022.09.27"]
[Round "7.9"]
[White "Bonte, Andrei-Mihai"]
[Black "Nanu, Costica-Ciprian"]
[Result "0-1"]
[ECO "D02"]
[WhiteElo "2339"]
[BlackElo "2518"]
[Annotator "TA"]
[PlyCount "117"]
[EventDate "2022.09.21"]
[EventType "team-tourn"]
[EventCountry "ROU"]
[SourceTitle "playchess.com"]
[Source "ChessBase"]
[SourceQuality "1"]
[TimeControl "40/5400+30:1800+30"]

{[%evp 9,117,0,0,0,-3,-2,0,-13,-7,0,-9,-66,0,-68,-63,-71,-66,-93,-92,-77,-89,-117,-123,-116,-116,-118,-118,-138,-138,-154,-145,-204,-149,-147,-140,-162,-147,-154,-147,-155,-141,-162,-138,-139,-139,-135,-143,-416,-429,-426,-418,-386,-397,-458,-435,-443,-403,-426,-355,-348,-323,-322,-240,-253,-227,-209,-38,-131,-47,-283,-280,-231,-158,-177,-166,-169,-162,-156,-100,-93,-94,-106,-83,-58,-14,-18,0,0,0,-14,-14,-14,0,0,0,-42,-42,-42,-42,-42,-20,-22,-22,-29978,-29979,-29978,-29980,-29980,-29980,-29984]} 1. d4 {[%emt 0:00:04]} Nf6 {[%emt 0:01:01]} 2. Nf3 {[%emt 0:00:12]} c5 {[%emt 0:00:10]} 3. c3 {[%emt 0:06:05]} d5 {[%emt 0:01:06]} 4. Bf4 {[%emt 0:04:12]} Nc6 {[%emt 0:01:03]} 5. dxc5 {[%emt 0:08:47]} e6 {[%emt 0:00:37]} 6. b4 {[%emt 0:04:05] D02: 1 d4 d5 2 Nf3 sidelines, including 2...Nf6 3 g3 and 2...Nf6 3 Bf4.} a5 {[%emt 0:00:10]} 7. b5 {[%emt 0:04:40]} Ne7 {[%emt 0:00:10]} (7... e5 8. Bg3 (8. bxc6 exf4 9. cxb7 Bxb7 $11) 8... Nb8 9. Nxe5 $14) 8. b6 {[%emt 0:35:09] And now Bc7 would win. The position is equal.} Bd7 {[%emt 0:12:41]} 9. Bc7 {[%emt 0:01:00]} Qc8 {[%emt 0:00:23] [#]} 10. Na3 $146 {[%emt 0:08:13]} (10. Nbd2 $11) ({Predecessor:} 10. Nbd2 Nf5 11. e3 Bxc5 12. c4 O-O 13. Bd3 dxc4 14. Nxc4 Nd5 15. Bxf5 Nxc7 16. Bd3 {0-1 (76) Costa Trillo,V (2279)-Doric,N (2303) ICCF email 2015}) 10... Ng6 {[%emt 0:01:32]} (10... Nf5 $15) 11. e3 {[%emt 0:02:26]} (11. Qd4 $11) 11... Bxc5 $15 {[%emt 0:00:35]} 12. Nb5 {[%emt 0:01:08]} O-O $1 {[%emt 0:00:10]} 13. h4 {[%emt 0:02:41]} Ne8 $1 {[%emt 0:04:43]} 14. h5 {[%emt 0:05:24]} Ne7 {[%emt 0:00:14]} 15. Rc1 {[%emt 0:07:12]} Bxb5 {[%emt 0:00:42]} 16. Bxb5 {[%emt 0:00:05]} Nxc7 {[%emt 0:00:05]} 17. bxc7 {[%emt 0:00:08]} Qxc7 {[%emt 0:00:18]} 18. h6 {[%emt 0:02:49]} g6 {[%emt 0:00:25]} 19. c4 {[%emt 0:00:42]} Rad8 {[%emt 0:03:06][%cal Ba8d8,Bd8d5,Bd5h5][%mdl 32]} 20. O-O {[%emt 0:03:59]} (20. Qe2 $17) 20... b6 {[%emt 0:04:38]} (20... dxc4 21. Qc2 $17) 21. cxd5 {[%emt 0:00:24]} Rxd5 {[%emt 0:00:15]} (21... Nxd5 22. Qb3 $15) 22. Qe2 {[%emt 0:00:33]} Rh5 {[%emt 0:00:27]} 23. Qb2 {[%emt 0:01:14][%csl Gh6][%cal Rb2g7]} Rxh6 {[%emt 0:00:07]} 24. Qe5 {[%emt 0:00:23]} Rc8 {[%emt 0:05:26]} 25. Rfd1 {[%emt 0:00:37]} Qxe5 {[%emt 0:01:42]} 26. Nxe5 {[%emt 0:00:02]} Rh5 {[%emt 0:00:10]} 27. Nd7 {[%emt 0:00:44]} Kg7 {[%emt 0:00:17]} 28. e4 $2 {[%emt 0:00:44][%mdl 8192] [#] Prevents Rd5.} (28. Ba6 $17 {was necessary.} Rc6 29. e4) 28... Bxf2+ $1 $19 {[%emt 0:00:56][%mdl 512]} 29. Kxf2 {[%emt 0:00:02]} Rxb5 {[%emt 0:00:35]} 30. Rxc8 {[%emt 0:00:18]} Nxc8 {[%emt 0:00:03][%mdl 4096] Endgame KRN-KRN} 31. Rc1 {[%emt 0:00:07]} Nd6 {[%emt 0:01:02]} 32. e5 {[%emt 0:01:08]} Nb7 {[%emt 0:05:19] Strongly threatening ...Nc5.} 33. Ke3 {[%emt 0:00:54]} Rd5 {[%emt 0:00:12]} 34. Rc7 {[%emt 0:00:28]} Nc5 {[%emt 0:00:10]} 35. Nxb6 {[%emt 0:00:19]} Rxe5+ {[%emt 0:00:10]} 36. Kd4 {[%emt 0:00:04]} Re2 {[%emt 0:03:44] ...Na6 is the strong threat.} ({Stronger than} 36... Na6 37. Rxf7+ Kxf7 38. Kxe5 $19) 37. Rxc5 {[%emt 0:00:08]} Rxa2 $2 {[%emt 0:00:05] KRN-KR} (37... Rxg2 $19 {aiming for ...h5.} 38. Rxa5 h5) 38. g3 {[%emt 0:01:03]} ({Only move:} 38. g4 $1 $15) 38... h5 {[%emt 0:02:20]} (38... Ra3 $1 $17 {[%cal Ra3g3]} 39. g4 Rg3) 39. Ke4 $2 {[%emt 0:00:32] [#]} (39. Nc4 $15) 39... Ra3 $1 {[%emt 0:01:20]} 40. Kf4 {[%emt 0:00:00]} Rb3 {[%emt 0:00:00]} 41. Nd7 {[%emt 0:04:48]} Rb7 {[%emt 0:04:19]} 42. Ne5 {[%emt 0:00:27] [#]} f6 $1 {[%emt 0:01:09]} 43. Nd3 {[%emt 0:09:42]} Ra7 {[%emt 0:00:42]} ({Better is} 43... e5+ 44. Ke3 a4) 44. Rc3 $17 {[%emt 0:00:23]} g5+ {[%emt 0:07:01]} 45. Ke4 {[%emt 0:00:34]} Kg6 {[%emt 0:00:29]} 46. Ra3 {[%emt 0:01:12]} e5 {[%emt 0:00:41]} 47. Ra4 $1 {[%emt 0:02:48]} g4 {[%emt 0:00:40]} 48. Nc5 {[%emt 0:02:37]} Ra8 {[%emt 0:02:44]} 49. Nd3 {[%emt 0:03:14]} Kg5 {[%emt 0:01:26]} 50. Nc5 $1 {[%emt 0:00:35]} Re8 {[%emt 0:09:23] Threatens to win with ...f5+.} 51. Rxa5 {[%emt 0:01:57]} f5+ {[%emt 0:00:05]} 52. Kd5 {[%emt 0:04:34]} h4 $1 {[%emt 0:00:08]} 53. gxh4+ {[%emt 0:04:46]} ({Don't blunder} 53. Ne6+ $2 Rxe6 54. Kxe6 hxg3 55. Kxe5 g2 $19) 53... Kxh4 {[%emt 0:00:07]} 54. Ne6 $1 {[%emt 0:00:12]} g3 {[%emt 0:01:02]} 55. Kxe5 {[%emt 0:00:29]} g2 {[%emt 0:00:09]} 56. Ra1 {[%emt 0:00:24][%mdl 8192]} (56. Ra7 $11) 56... f4 {[%emt 0:00:33][%mdl 64] Deflection. Black mates.} 57. Kxf4 {[%emt 0:01:00]} Rxe6 {[%emt 0:00:04]} 58. Kf5 {[%emt 0:00:31]} Re8 {[%emt 0:00:10]} ({Inferior is} 58... Ra6 59. Rxa6 g1=Q 60. Rh6+ Kg3 61. Rg6+ Kh2 62. Rxg1 Kxg1 $11) 59. Ra7 {[%emt 0:00:27] Weighted Error Value: White=0.32/Black=0.18 (very precise)} 0-1

[Event "Romanian Superleague 2022"]
[Site "Oradea"]
[Date "2022.09.27"]
[Round "7.11"]
[White "Ileana, George"]
[Black "Anton, Teodor"]
[Result "1-0"]
[ECO "A31"]
[WhiteElo "2301"]
[BlackElo "2454"]
[Annotator "TA"]
[PlyCount "77"]
[EventDate "2022.09.21"]
[EventType "team-tourn"]
[EventCountry "ROU"]
[SourceTitle "playchess.com"]
[Source "ChessBase"]
[SourceQuality "1"]
[TimeControl "40/5400+30:1800+30"]

{[%evp 22,77,41,36,53,36,43,37,37,37,45,37,39,43,47,19,29,-12,8,21,94,120,151,134,152,154,210,208,204,212,182,202,189,127,114,132,164,167,156,153,157,169,156,165,195,218,431,218,582,580,553,561,609,580,534,531,525,508]} 1. e4 {[%emt 0:00:09]} c5 {[%emt 0:00:14]} 2. Nf3 {[%emt 0:00:06]} d6 {[%emt 0:00:17]} 3. d4 {[%emt 0:00:04]} cxd4 {[%emt 0:00:05]} 4. Nxd4 {[%emt 0:00:04]} Nf6 {[%emt 0:00:06]} 5. f3 {[%emt 0:00:06]} e6 {[%emt 0:07:00]} 6. c4 {[%emt 0:00:05]} a6 {[%emt 0:01:29]} 7. Nc3 {[%emt 0:00:12]} b6 {[%emt 0:00:05]} 8. Be3 {[%emt 0:00:09]} Bb7 {[%emt 0:00:05]} 9. Be2 {[%emt 0:00:34]} Nbd7 {[%emt 0:00:05]} 10. O-O {[%emt 0:00:15]} Be7 {[%emt 0:00:03]} 11. Qd2 {[%emt 0:00:06]} O-O {[%emt 0:00:08]} 12. Rac1 {[%emt 0:00:09]} Rc8 {[%emt 0:01:19] A31: Symmetrical English: 2 Nf3 Nf6 3 d4.} 13. Rc2 {[%emt 0:00:47]} Qc7 {[%emt 0:01:55]} 14. Rb1 {[%emt 0:00:22]} Qb8 {[%emt 0:00:42] White is slightly better.} 15. b4 {[%emt 0:00:19]} Qa8 {[%emt 0:01:57] [#]} 16. Bf1 $146 {[%emt 0:02:23]} ({Predecessor:} 16. a4 Rfe8 17. a5 bxa5 18. b5 d5 19. exd5 exd5 20. Nc6 Bxc6 21. bxc6 Qxc6 22. Nd1 {1-0 (63) Erdogdu,M (2407)-Vusatiuk,V (2307) Chess.com INT 2022}) 16... Rfe8 {[%emt 0:00:09]} 17. Na4 {[%emt 0:06:41]} Bf8 {[%emt 0:19:09]} 18. Nb3 {[%emt 0:02:31]} Qb8 {[%emt 0:04:08][%cal Ob6b5]} 19. Qf2 {[%emt 0:01:56]} (19. Nxb6 Nxb6 20. Bxb6 Bxe4 $1 {[%mdl 512]} 21. fxe4 Qxb6+ 22. Kh1 Nxe4 $17) 19... d5 {[%emt 0:14:15]} (19... b5 $5 20. cxb5 Rxc2 21. Qxc2 axb5 $11) 20. exd5 {[%emt 0:00:34]} exd5 {[%emt 0:00:20]} (20... Bd6 $11 {remains equal.} 21. g3 b5) 21. c5 $1 $16 {[%emt 0:00:28]} Qa8 {[%emt 0:08:25]} 22. Nd4 {[%emt 0:04:25]} bxc5 {[%emt 0:04:25]} 23. bxc5 {[%emt 0:00:07]} Bxc5 {[%emt 0:02:37]} (23... h6 $16 24. Nf5 Rc6) 24. Nxc5 {[%emt 0:00:14]} Rxc5 {[%emt 0:04:26]} 25. Rxc5 {[%emt 0:01:02]} Nxc5 {[%emt 0:00:06]} 26. Nf5 $1 {[%emt 0:00:06]} Ne6 {[%emt 0:03:09][%cal Od5d4]} 27. Nd6 {[%emt 0:00:13]} (27. Qh4 $18) 27... Re7 {[%emt 0:04:06]} 28. Qb2 $36 {[%emt 0:00:50][%cal Rd6b7][%mdl 2048] White has strong initiative. White is much more active.} d4 {[%emt 0:02:23]} 29. Bf2 {[%emt 0:04:47][%cal Rd6b7]} ({Don't play} 29. Bxd4 $6 Nxd4 30. Qxd4 (30. Nxb7 Ne6 $14) 30... Bd5 $14) 29... Bd5 {[%emt 0:12:38]} 30. Qb8+ {[%emt 0:00:31]} Qxb8 {[%emt 0:00:16]} 31. Rxb8+ {[%emt 0:00:06]} Nf8 {[%emt 0:00:04]} 32. a4 {[%emt 0:01:19]} a5 {[%emt 0:05:16]} 33. Bxd4 {[%emt 0:00:30] Strongly threatening Nf5.} Re6 $2 {[%emt 0:01:59] [#]} (33... Bc6 34. Bb5 Bxb5) 34. Nf5 {[%emt 0:00:31]} (34. Bb5 $142 $1) 34... g6 $2 {[%emt 0:00:55]} (34... Bc6 35. Kf2 Bxa4) 35. Bxf6 $18 {[%emt 0:01:47][%cal Rf5h6] A strong pair of Bishops. White is clearly winning.} gxf5 {[%emt 0:00:12]} 36. Bb2 {[%emt 0:00:39]} Bc6 {[%emt 0:00:27] [#]} 37. Bb5 {[%emt 0:00:10]} Bxb5 {[%emt 0:00:52]} 38. axb5 {[%emt 0:00:05]} ({Less strong is} 38. Rxb5 Re2 39. Bd4 Rd2 $18) 38... Re3 {[%emt 0:00:08] Against Ba3} 39. Bd4 {[%emt 0:00:13] Weighted Error Value: White=0.17 (very precise) /Black=0.39} 1-0

[Event "Romanian Superleague 2022"]
[Site "Oradea"]
[Date "2022.09.27"]
[Round "7.12"]
[White "Antal, Hunor-Zoltan"]
[Black "Pisu, Robert-Daniel"]
[Result "1-0"]
[ECO "B12"]
[WhiteElo "2235"]
[BlackElo "2223"]
[Annotator "TA"]
[PlyCount "81"]
[EventDate "2022.09.21"]
[EventType "team-tourn"]
[EventCountry "ROU"]
[SourceTitle "playchess.com"]
[Source "ChessBase"]
[SourceQuality "1"]
[TimeControl "40/5400+30:1800+30"]

{[%evp 14,81,38,22,45,44,39,35,120,85,89,81,87,84,77,80,87,76,88,83,77,82,110,116,108,116,90,106,95,102,102,30,156,152,169,159,334,321,542,456,445,456,444,430,429,431,472,463,579,566,622,609,596,599,658,662,663,661,785,770,791,791,762,727,713,695,691,677,723,712]} 1. e4 {[%emt 0:00:14]} c6 {[%emt 0:00:08]} 2. d4 {[%emt 0:00:09]} d5 {[%emt 0:00:06]} 3. e5 {[%emt 0:00:05]} Bf5 {[%emt 0:00:05]} 4. Nf3 {[%emt 0:00:06]} e6 {[%emt 0:00:14]} 5. Be2 {[%emt 0:00:06]} Nd7 {[%emt 0:00:17]} 6. O-O {[%emt 0:00:08]} h6 {[%emt 0:01:11]} 7. b3 {[%emt 0:00:47]} Ne7 {[%emt 0:01:14]} 8. c4 {[%emt 0:00:09]} g5 {[%emt 0:03:36] B12: Caro-Kann: Advance Variation.} 9. Nc3 {[%emt 0:01:08]} Bg7 {[%emt 0:02:13]} 10. Ba3 {[%emt 0:00:46] [#]} f6 $146 {[%emt 0:10:23]} (10... dxc4 $14 11. Bxc4 (11. bxc4 c5 $11) 11... O-O) ({Predecessor:} 10... O-O 11. cxd5 exd5 12. Bd3 Be6 13. Ne2 f6 14. exf6 Rxf6 15. Ng3 Bg4 16. Be2 Ng6 {0-1 (35) Savic,M (2446)-Batsuren,D (2451) Novi Sad 2020}) 11. cxd5 {[%emt 0:04:38]} exd5 {[%emt 0:07:29][%cal Rf6e5]} 12. e6 {[%emt 0:31:24]} Bxe6 {[%emt 0:17:57]} 13. Re1 {[%emt 0:00:08]} Nf8 {[%emt 0:08:05]} 14. Bd3 {[%emt 0:00:48]} Kf7 {[%emt 0:05:50]} 15. Qc2 {[%emt 0:00:24]} Qd7 {[%emt 0:04:19]} 16. Na4 {[%emt 0:08:21] Black must now prevent Nc5.} b6 {[%emt 0:02:09] Prevents Nc5.} 17. Bxe7 {[%emt 0:08:16][%mdl 64] Remove Defender} Qxe7 {[%emt 0:10:16]} 18. Qxc6 {[%emt 0:00:21]} Rc8 {[%emt 0:00:34] [#]} 19. Qxc8 {[%emt 0:04:14] Dancing on a razor blade. White has more active pieces.} ({But not} 19. Qb5 $6 Qd7 $11) 19... Bxc8 {[%emt 0:00:02]} 20. Rxe7+ {[%emt 0:00:12]} Kxe7 {[%emt 0:00:02] [#]} 21. Nc3 $1 {[%emt 0:01:20]} Be6 {[%emt 0:06:54]} 22. Nb5 {[%emt 0:00:44]} ({White should play} 22. Re1 $16) 22... a6 {[%emt 0:01:07]} (22... Bd7 $1 $11) 23. Nc7 $16 {[%emt 0:01:33]} a5 {[%emt 0:02:34]} (23... g4 $2 24. Nh4) 24. Rc1 {[%emt 0:00:51]} g4 $2 {[%emt 0:09:14] This move loses the game for Black.} (24... Kd8 $16 {keeps fighting.} 25. Nxe6+ Nxe6) 25. Nh4 $18 {[%emt 0:00:22]} Kd7 $2 {[%emt 0:02:11]} (25... f5 {might work better.} 26. Bxf5 Bxf5) 26. Bb5+ {[%emt 0:00:19] White is clearly winning.} Kd8 {[%emt 0:00:06] [#]} 27. Ng6 $1 {[%emt 0:00:11][%mdl 512] Strongly threatening Nxf8.} Bf7 {[%emt 0:01:33]} 28. Nxh8 {[%emt 0:00:12]} Bxh8 {[%emt 0:00:01] [#]} 29. Bc6 $1 {[%emt 0:01:29]} f5 {[%emt 0:01:57]} (29... Ne6 30. Bxd5) 30. Bxd5 {[%emt 0:00:12]} Bxd5 {[%emt 0:00:30]} 31. Nxd5 {[%emt 0:00:02]} Bxd4 {[%emt 0:00:08][%mdl 4096] Endgame KRN-KBN} 32. Rd1 {[%emt 0:00:37][%csl LRb6,LRd4]} Bc5 {[%emt 0:02:35]} 33. Nxb6+ {[%emt 0:00:26]} Ke7 {[%emt 0:00:26]} 34. Nc4 {[%emt 0:00:08]} Bb4 {[%emt 0:00:12]} 35. a3 {[%emt 0:00:09]} Bc5 {[%emt 0:00:40]} 36. Rd5 {[%emt 0:00:09]} Ne6 {[%emt 0:00:05]} 37. Rxf5 {[%emt 0:00:12]} Kd7 {[%emt 0:01:41]} 38. Ne5+ {[%emt 0:00:12]} Kd6 {[%emt 0:00:08]} 39. Nxg4 {[%emt 0:00:13]} Nd4 {[%emt 0:00:10]} 40. Rf6+ {[%emt 0:00:00]} Kd5 {[%emt 0:00:00]} 41. b4 {[%emt 0:00:50] Weighted Error Value: White=0.08 (flawless) /Black=0.37} 1-0

[Event "Romanian Superleague 2022"]
[Site "Oradea"]
[Date "2022.09.27"]
[Round "7.13"]
[White "Deac, Bogdan-Daniel"]
[Black "Berkes, Ferenc"]
[Result "1-0"]
[ECO "D15"]
[WhiteElo "2710"]
[BlackElo "2651"]
[Annotator "TA"]
[PlyCount "71"]
[EventDate "2022.09.21"]
[EventType "team-tourn"]
[EventCountry "ROU"]
[SourceTitle "playchess.com"]
[Source "ChessBase"]
[SourceQuality "1"]
[TimeControl "40/5400+30:1800+30"]

{[%evp 9,71,12,8,10,12,7,3,-8,0,0,0,0,0,0,0,0,0,0,0,0,0,0,0,0,33,54,90,89,88,-70,-35,-98,-96,-85,9,10,159,149,325,330,338,354,312,350,303,345,452,382,369,358,336,275,251,242,377,380,641,643,588,524,877,867,5252,5211]} 1. d4 {[%emt 0:00:17]} d5 {[%emt 0:00:10]} 2. c4 {[%emt 0:00:05]} c6 {[%emt 0:00:03]} 3. Nf3 {[%emt 0:00:15]} Nf6 {[%emt 0:00:09]} 4. Nc3 {[%emt 0:01:16]} a6 {[%emt 0:00:08]} 5. g3 {[%emt 0:05:05]} e6 {[%emt 0:00:31]} 6. Bg2 {[%emt 0:01:53] D15: Slav Defence: 4 Nc3 a6 and gambit lines after 4 Nc3 dxc4.} dxc4 {[%emt 0:00:28]} 7. O-O {[%emt 0:02:45]} b5 {[%emt 0:00:09]} 8. e4 $1 {[%emt 0:02:26][%cal Od4d5][%mdl 4] The position is equal. is currently scoring better than 8.Ne5.} Bb7 {[%emt 0:00:39]} ({Don't play} 8... b4 9. Na4 $16 (9. e5 Nd5 $11)) 9. e5 {[%emt 0:02:54]} Nd5 {[%emt 0:00:30]} 10. Ng5 {[%emt 0:00:16]} h6 {[%emt 0:05:19]} 11. Qh5 $40 {[%emt 0:03:26][%csl Gg5,LRe6,LRf7][%cal Rh5f7][%mdl 128] Black needs to defend precisely.} g6 {[%emt 0:03:04]} 12. Qh3 {[%emt 0:00:45]} Nd7 {[%emt 0:26:03] [#]} 13. Nxe6 $146 {[%emt 0:12:51]} ({Predecessor:} 13. Re1 Nxc3 14. bxc3 Be7 15. Nxe6 fxe6 16. Qxe6 Nf8 17. Bxc6+ Bxc6 18. Qxc6+ Kf7 19. a4 {1-0 (32) Cordova,E (2538)-Gomez Garrido,C (2537) Bogota 2011}) 13... fxe6 {[%emt 0:00:06]} 14. Qxe6+ {[%emt 0:00:08]} Qe7 {[%emt 0:00:08]} 15. Qxg6+ {[%emt 0:00:27]} Qf7 {[%emt 0:00:09]} 16. Qg4 {[%emt 0:11:50]} Rg8 {[%emt 0:02:21]} 17. Qh3 {[%emt 0:11:07][%mdl 1024] White has compensation.} N7b6 {[%emt 0:08:13] And now ...Bc8 would win.} 18. f4 $1 {[%emt 0:02:20][%cal Bf2f4,Bf4f5,Bf5f6][%mdl 32]} c5 {[%emt 0:20:01]} 19. Bf3 $2 {[%emt 0:02:35]} ({White should play} 19. Bd2 $1 $16) 19... Kd8 $1 $15 {[%emt 0:01:47]} (19... cxd4 $2 20. Bh5 Rg6 21. f5 $18) 20. Ne4 {[%emt 0:12:10]} (20. e6 $1 $15 Qc7 21. f5) 20... cxd4 $17 {[%emt 0:01:37] aiming for ...d3.} 21. f5 {[%emt 0:00:23]} d3 {[%emt 0:08:05]} (21... Kc8 $17) 22. e6 $11 {[%emt 0:02:56]} Qg7 {[%emt 0:02:32]} (22... Qc7 $11) 23. f6 $1 $16 {[%emt 0:03:24]} Nxf6 {[%emt 0:00:10] Loses the game.} (23... Qc7 $16) 24. Nxf6 $18 {[%emt 0:00:33]} Qxf6 {[%emt 0:12:15]} 25. Bxb7 {[%emt 0:01:09][%mdl 64] Discovered Attack. Dancing on a razor blade.} Qd4+ {[%emt 0:00:04]} 26. Kh1 {[%emt 0:00:59] Hoping for Rf4.} Ra7 {[%emt 0:00:04]} (26... d2 $2 27. Bxd2 $1 {[%mdl 512]} Bd6 28. Ba5 $18) 27. Bg2 {[%emt 0:01:56]} Be7 {[%emt 0:02:22]} (27... d2 $2 {[#]} 28. Bxd2 $1 {[%mdl 512]} Be7 29. Qxh6 $18) 28. Qxh6 {[%emt 0:04:31] Threatens to win with Be3.} Rh8 {[%emt 0:00:43]} 29. Qe3 {[%emt 0:01:45]} Bc5 {[%emt 0:00:08]} 30. Qxd4+ {[%emt 0:01:21]} Bxd4 {[%emt 0:00:11]} 31. Bg5+ {[%emt 0:00:03]} Kc8 {[%emt 0:00:18]} (31... Re7 $142 32. Rf7 Nc8) 32. e7 {[%emt 0:00:31] Threatening mate with Rf8+.} Rxe7 $2 {[%emt 0:07:31]} (32... Nd7 33. Bd5 Kc7 34. Bf4+ Kc8) 33. Bxe7 {[%emt 0:00:07] This bishop pair is nice. White is clearly winning.} Bxb2 {[%emt 0:00:06]} 34. Rad1 {[%emt 0:01:12]} Re8 {[%emt 0:00:17]} 35. Bb4 {[%emt 0:01:24]} Na4 {[%emt 0:00:43]} 36. Rf7 {[%emt 0:02:02] Weighted Error Value: White=0.17 (very precise) /Black=0.52} 1-0

[Event "Romanian Superleague 2022"]
[Site "Oradea"]
[Date "2022.09.27"]
[Round "7.14"]
[White "Lupulescu, Constantin"]
[Black "Miroshnichenko, Evgenij"]
[Result "1/2-1/2"]
[ECO "C42"]
[WhiteElo "2614"]
[BlackElo "2597"]
[Annotator "TA"]
[PlyCount "27"]
[EventDate "2022.09.21"]
[EventType "team-tourn"]
[EventCountry "ROU"]
[SourceTitle "playchess.com"]
[Source "ChessBase"]
[SourceQuality "1"]
[TimeControl "40/5400+30:1800+30"]

{[%evp 13,27,14,16,12,8,11,31,19,41,0,0,0,0,0,0,0]} 1. e4 {[%emt 0:00:03]} e5 {[%emt 0:00:27]} 2. Nf3 {[%emt 0:00:04]} Nf6 {[%emt 0:00:16]} 3. Nxe5 {[%emt 0:00:05]} d6 {[%emt 0:00:05]} 4. Nf3 {[%emt 0:00:03]} Nxe4 {[%emt 0:00:09]} 5. Bd3 {[%emt 0:00:05]} Nf6 {[%emt 0:01:55]} 6. O-O {[%emt 0:00:55]} Be7 {[%emt 0:00:05]} 7. h3 {[%emt 0:00:49]} O-O {[%emt 0:08:33]} 8. c3 {[%emt 0:02:08] C42: Petroff Defence: 3 Nxe5 and unusual White 3rd moves.} Nbd7 {[%emt 0:05:00] 8...d5 is setting a new trend.} 9. Bc2 {[%emt 0:03:04]} b6 {[%emt 0:06:17]} 10. d4 {[%emt 0:03:30] White is slightly better.} Bb7 {[%emt 0:01:34] [#]} 11. c4 $1 $146 {[%emt 0:06:16][%mdl 8] A relevant novelty.} ({Predecessor:} 11. Re1 Re8 12. Nbd2 Bf8 13. Rxe8 Qxe8 14. Nf1 Be4 15. Ng3 Bxc2 16. Qxc2 Qe6 17. b3 {1-0 (42) Bortnyk,O (2604)-Deac,B (2683) Chess.com INT 2022}) 11... d5 {[%emt 0:07:52] The position is equal.} 12. cxd5 {[%emt 0:00:56]} Nxd5 {[%emt 0:00:10]} 13. Nc3 {[%emt 0:00:22]} c5 {[%emt 0:05:28]} 14. Nxd5 {[%emt 1:19:10] A balanced but interesting game.  Weighted Error Value: White=0.07 (flawless) /Black=0.07 (flawless)} 1/2-1/2